[Event "Titled Tuesday Blitz February 14 Late 2023"]
[White "Strahov, Andrej"]
[Black "Leonte, Sebastian-Marian"]
[WhiteFideId "4165489"]
[BlackFideId "1268767"]
[WhiteElo "2398"]
[BlackElo "1279"]
[Result "1-0"]
[Round "03"]
[TimeControl "180+2"]
[Date "2023.02.14"]
[WhiteClock "0:01:16"]
[BlackClock "0:00:02"]

1. g3 {[%clk 0:03:00]}  d5 {[%clk 0:02:57]} 2. Bg2 {[%clk 0:03:00]}  c6 {[%clk 0:02:57]} 3. b3 {[%clk 0:02:59]}  Nf6 {[%clk 0:02:53]} 4. Bb2 {[%clk 0:02:59]}  Bf5 {[%clk 0:02:50]} 5. c4 {[%clk 0:02:56]}  e6 {[%clk 0:02:48]} 6. d3 {[%clk 0:02:56]}  Be7 {[%clk 0:02:35]} 7. Nf3 {[%clk 0:02:54]}  O-O {[%clk 0:02:31]} 8. O-O {[%clk 0:02:53]}  a5 {[%clk 0:02:25]} 9. cxd5 {[%clk 0:02:52]}  exd5 {[%clk 0:02:19]} 10. Nc3 {[%clk 0:02:50]}  Bg6 {[%clk 0:01:44]} 11. Re1 {[%clk 0:02:49]}  Nbd7 {[%clk 0:01:40]} 12. e4 {[%clk 0:02:46]}  Nc5 {[%clk 0:01:33]} 13. Qe2 {[%clk 0:02:18]}  dxe4 {[%clk 0:01:22]} 14. dxe4 {[%clk 0:02:16]}  Qd3 {[%clk 0:01:16]} 15. Ne5 {[%clk 0:02:08]}  Qxe2 {[%clk 0:01:11]} 16. Rxe2 {[%clk 0:02:09]}  Rfd8 {[%clk 0:01:05]} 17. Nxg6 {[%clk 0:02:05]}  hxg6 {[%clk 0:01:06]} 18. e5 {[%clk 0:02:03]}  Nfd7 {[%clk 0:00:59]} 19. Rae1 {[%clk 0:02:02]}  Nf8 {[%clk 0:00:47]} 20. Ba1 {[%clk 0:01:58]}  Nfe6 {[%clk 0:00:45]} 21. f4 {[%clk 0:01:55]}  a4 {[%clk 0:00:44]} 22. b4 {[%clk 0:01:51]}  Nd3 {[%clk 0:00:43]} 23. Rd1 {[%clk 0:01:50]}  Nxb4 {[%clk 0:00:41]} 24. Rb1 {[%clk 0:01:46]}  a3 {[%clk 0:00:34]} 25. h3 {[%clk 0:01:44]}  Rd7 {[%clk 0:00:28]} 26. Ne4 {[%clk 0:01:32]}  Rad8 {[%clk 0:00:24]} 27. Kh2 {[%clk 0:01:30]}  Rd1 {[%clk 0:00:24]} 28. Re1 {[%clk 0:01:30]}  Rxe1 {[%clk 0:00:20]} 29. Rxe1 {[%clk 0:01:31]}  Nxa2 {[%clk 0:00:20]} 30. Re3 {[%clk 0:01:25]}  Nc1 {[%clk 0:00:17]} 31. Nd6 {[%clk 0:01:22]}  Bxd6 {[%clk 0:00:15]} 32. exd6 {[%clk 0:01:22]}  Rxd6 {[%clk 0:00:15]} 33. Rxa3 {[%clk 0:01:21]}  Rd2 {[%clk 0:00:13]} 34. Bc3 {[%clk 0:01:20]}  Rc2 {[%clk 0:00:11]} 35. Be5 {[%clk 0:01:18]}  Nd3 {[%clk 0:00:11]} 36. Rxd3 {[%clk 0:01:18]}  b5 {[%clk 0:00:08]} 37. Rd6 {[%clk 0:01:17]}  c5 {[%clk 0:00:07]} 38. Kg1 {[%clk 0:01:16]}  b4 {[%clk 0:00:07]} 39. Be4 {[%clk 0:01:17]}  Rc1+ {[%clk 0:00:07]} 40. Kf2 {[%clk 0:01:17]}  c4 {[%clk 0:00:07]} 41. f5 {[%clk 0:01:17]}  gxf5 {[%clk 0:00:07]} 42. Bxf5 {[%clk 0:01:18]}  c3 {[%clk 0:00:07]} 43. Rb6 {[%clk 0:01:17]}  Ng5 {[%clk 0:00:02]} 44. Rb8# {[%clk 0:01:16]} 1-0


[Site "https://www.chess.com"]

[Event "Titled Tuesday Blitz February 14 Late 2023"]
[White "Cueto, Jonny"]
[Black "reevecanada"]
[WhiteFideId "3300145"]
[WhiteElo "2122"]
[BlackElo "2466"]
[Result "0-1"]
[Round "03"]
[TimeControl "180+2"]
[Date "2023.02.14"]
[WhiteClock "0:01:04"]
[BlackClock "0:01:59"]

1. d4 {[%clk 0:03:00]}  d5 {[%clk 0:02:58]} 2. Bf4 {[%clk 0:02:49]}  Bf5 {[%clk 0:02:57]} 3. c4 {[%clk 0:02:48]}  c6 {[%clk 0:02:55]} 4. Qb3 {[%clk 0:02:46]}  Qb6 {[%clk 0:02:54]} 5. c5 {[%clk 0:02:46]}  Qxb3 {[%clk 0:02:53]} 6. axb3 {[%clk 0:02:47]}  a6 {[%clk 0:02:52]} 7. b4 {[%clk 0:02:42]}  Nd7 {[%clk 0:02:51]} 8. Nc3 {[%clk 0:02:39]}  Rc8 {[%clk 0:02:47]} 9. Nf3 {[%clk 0:02:38]}  f6 {[%clk 0:02:45]} 10. e3 {[%clk 0:02:32]}  e6 {[%clk 0:02:45]} 11. Kd2 {[%clk 0:02:10]}  h5 {[%clk 0:02:44]} 12. Bd3 {[%clk 0:02:09]}  Bxd3 {[%clk 0:02:41]} 13. Kxd3 {[%clk 0:02:10]}  g5 {[%clk 0:02:35]} 14. Bd6 {[%clk 0:02:04]}  Bxd6 {[%clk 0:02:34]} 15. cxd6 {[%clk 0:02:05]}  g4 {[%clk 0:02:32]} 16. Nh4 {[%clk 0:02:01]}  f5 {[%clk 0:02:30]} 17. Ng6 {[%clk 0:01:59]}  Rh6 {[%clk 0:02:27]} 18. Ne5 {[%clk 0:01:50]}  Ngf6 {[%clk 0:02:25]} 19. h3 {[%clk 0:01:47]}  Nxe5+ {[%clk 0:02:16]} 20. dxe5 {[%clk 0:01:46]}  Nd7 {[%clk 0:02:15]} 21. Kd4 {[%clk 0:01:38]}  c5+ {[%clk 0:02:15]} 22. bxc5 {[%clk 0:01:38]}  Nxc5 {[%clk 0:02:16]} 23. hxg4 {[%clk 0:01:37]}  Nb3+ {[%clk 0:02:11]} 24. Kd3 {[%clk 0:01:30]}  Nxa1 {[%clk 0:02:10]} 25. gxf5 {[%clk 0:01:29]}  Nb3 {[%clk 0:02:07]} 26. fxe6 {[%clk 0:01:24]}  Rxe6 {[%clk 0:02:06]} 27. f4 {[%clk 0:01:23]}  Rg6 {[%clk 0:02:03]} 28. Rxh5 {[%clk 0:01:19]}  Rxg2 {[%clk 0:02:01]} 29. e6 {[%clk 0:01:04]}  Rd2# {[%clk 0:01:59]} 0-1


[Site "https://www.chess.com"]

[Event "Titled Tuesday Blitz February 14 Late 2023"]
[White "Zaksaite, Salomeja"]
[Black "Mareco, Sandro"]
[WhiteFideId "12801496"]
[BlackFideId "112275"]
[WhiteElo "2283"]
[BlackElo "2633"]
[Result "0-1"]
[Round "03"]
[TimeControl "180+2"]
[Date "2023.02.14"]
[WhiteClock "0:00:03"]
[BlackClock "0:00:03"]

1. e4 {[%clk 0:02:57]}  c5 {[%clk 0:02:59]} 2. Nf3 {[%clk 0:02:57]}  Nc6 {[%clk 0:02:58]} 3. Bb5 {[%clk 0:02:56]}  g6 {[%clk 0:02:56]} 4. O-O {[%clk 0:02:56]}  Bg7 {[%clk 0:02:56]} 5. Re1 {[%clk 0:02:56]}  e5 {[%clk 0:02:52]} 6. c3 {[%clk 0:02:55]}  Nge7 {[%clk 0:02:51]} 7. d4 {[%clk 0:02:28]}  cxd4 {[%clk 0:02:22]} 8. cxd4 {[%clk 0:02:27]}  O-O {[%clk 0:02:20]} 9. d5 {[%clk 0:02:16]}  Nd4 {[%clk 0:02:15]} 10. Nxd4 {[%clk 0:02:14]}  exd4 {[%clk 0:02:16]} 11. Bg5 {[%clk 0:02:11]}  d6 {[%clk 0:02:09]} 12. Nd2 {[%clk 0:02:03]}  h6 {[%clk 0:02:06]} 13. Bf4 {[%clk 0:01:56]}  Qb6 {[%clk 0:01:52]} 14. a4 {[%clk 0:01:52]}  Qd8 {[%clk 0:01:31]} 15. Nb3 {[%clk 0:01:39]}  Qb6 {[%clk 0:01:28]} 16. Qd3 {[%clk 0:01:25]}  a6 {[%clk 0:01:25]} 17. Bc4 {[%clk 0:01:25]}  g5 {[%clk 0:01:23]} 18. a5 {[%clk 0:01:21]}  Qd8 {[%clk 0:01:15]} 19. Bg3 {[%clk 0:01:17]}  b5 {[%clk 0:01:15]} 20. axb6 {[%clk 0:01:13]}  Qxb6 {[%clk 0:01:15]} 21. Red1 {[%clk 0:00:37]}  f5 {[%clk 0:01:14]} 22. f3 {[%clk 0:00:23]}  fxe4 {[%clk 0:01:08]} 23. fxe4 {[%clk 0:00:23]}  Ng6 {[%clk 0:01:07]} 24. Kh1 {[%clk 0:00:10]}  Ne5 {[%clk 0:00:29]} 25. Qxd4 {[%clk 0:00:09]}  Qxd4 {[%clk 0:00:25]} 26. Rxd4 {[%clk 0:00:09]}  Bb7 {[%clk 0:00:11]} 27. Be2 {[%clk 0:00:09]}  Rfb8 {[%clk 0:00:08]} 28. Rb4 {[%clk 0:00:08]}  Bc8 {[%clk 0:00:06]} 29. Rxb8 {[%clk 0:00:07]}  Rxb8 {[%clk 0:00:07]} 30. Nd4 {[%clk 0:00:05]}  Rxb2 {[%clk 0:00:06]} 31. Bf1 {[%clk 0:00:03]}  Ng4 {[%clk 0:00:05]} 32. Rd1 {[%clk 0:00:03]}  Ne3 {[%clk 0:00:03]} 0-1


[Site "https://www.chess.com"]

[Event "Titled Tuesday Blitz February 14 Late 2023"]
[White "Clawitter, Craig"]
[Black "Kanyamarala, Trisha"]
[WhiteFideId "2023105"]
[BlackFideId "45004722"]
[WhiteElo "2050"]
[BlackElo "2278"]
[Result "1/2-1/2"]
[Round "03"]
[TimeControl "180+2"]
[Date "2023.02.14"]
[WhiteClock "0:00:13"]
[BlackClock "0:00:17"]

1. e4 {[%clk 0:02:56]}  c5 {[%clk 0:02:56]} 2. Nf3 {[%clk 0:02:56]}  Nc6 {[%clk 0:02:51]} 3. d4 {[%clk 0:02:57]}  cxd4 {[%clk 0:02:51]} 4. Nxd4 {[%clk 0:02:58]}  d6 {[%clk 0:02:49]} 5. Nc3 {[%clk 0:02:57]}  Nf6 {[%clk 0:02:49]} 6. Bc4 {[%clk 0:02:56]}  e6 {[%clk 0:02:48]} 7. Be3 {[%clk 0:02:55]}  a6 {[%clk 0:02:48]} 8. Qe2 {[%clk 0:02:56]}  Bd7 {[%clk 0:02:46]} 9. O-O-O {[%clk 0:02:54]}  b5 {[%clk 0:02:46]} 10. Bb3 {[%clk 0:02:53]}  Be7 {[%clk 0:02:38]} 11. f3 {[%clk 0:02:41]}  Na5 {[%clk 0:02:29]} 12. g4 {[%clk 0:02:34]}  Qc7 {[%clk 0:02:24]} 13. g5 {[%clk 0:02:30]}  Nh5 {[%clk 0:02:23]} 14. f4 {[%clk 0:02:29]}  g6 {[%clk 0:02:24]} 15. f5 {[%clk 0:02:23]}  Nc4 {[%clk 0:02:22]} 16. fxe6 {[%clk 0:02:11]}  fxe6 {[%clk 0:02:21]} 17. Rhf1 {[%clk 0:01:58]}  Rc8 {[%clk 0:01:58]} 18. Kb1 {[%clk 0:01:11]}  Nxb2 {[%clk 0:01:44]} 19. Kxb2 {[%clk 0:01:02]}  Qxc3+ {[%clk 0:01:42]} 20. Kb1 {[%clk 0:01:03]}  Qb4 {[%clk 0:01:20]} 21. a3 {[%clk 0:00:37]}  Qxa3 {[%clk 0:01:12]} 22. Nxe6 {[%clk 0:00:32]}  a5 {[%clk 0:01:03]} 23. Ng7+ {[%clk 0:00:20]}  Nxg7 {[%clk 0:01:01]} 24. Bf7+ {[%clk 0:00:17]}  Kd8 {[%clk 0:00:54]} 25. Bb6+ {[%clk 0:00:17]}  Rc7 {[%clk 0:00:54]} 26. Rf3 {[%clk 0:00:14]}  Qa4 {[%clk 0:00:33]} 27. Rc3 {[%clk 0:00:12]}  Qb4+ {[%clk 0:00:22]} 28. Rb3 {[%clk 0:00:12]}  Qa4 {[%clk 0:00:22]} 29. Rc3 {[%clk 0:00:13]}  Qb4+ {[%clk 0:00:20]} 30. Rb3 {[%clk 0:00:13]}  Qa4 {[%clk 0:00:17]} 31. Rc3 {[%clk 0:00:13]} 1/2-1/2


[Site "https://www.chess.com"]

[Event "Titled Tuesday Blitz February 14 Late 2023"]
[White "Gatterer, Florian"]
[Black "mestrefeitosa19"]
[WhiteFideId "811688"]
[WhiteElo "2170"]
[BlackElo "2187"]
[Result "1-0"]
[Round "03"]
[TimeControl "180+2"]
[Date "2023.02.14"]
[WhiteClock "0:00:05"]
[BlackClock "0:00:02"]

1. e4 {[%clk 0:03:00]}  e5 {[%clk 0:03:00]} 2. Nf3 {[%clk 0:03:00]}  Nc6 {[%clk 0:03:00]} 3. Bc4 {[%clk 0:02:59]}  Bc5 {[%clk 0:03:00]} 4. O-O {[%clk 0:02:58]}  Nf6 {[%clk 0:02:59]} 5. d3 {[%clk 0:02:58]}  h6 {[%clk 0:02:57]} 6. c3 {[%clk 0:02:57]}  d6 {[%clk 0:02:58]} 7. a4 {[%clk 0:02:56]}  a6 {[%clk 0:02:56]} 8. Nbd2 {[%clk 0:02:55]}  Ba7 {[%clk 0:02:52]} 9. h3 {[%clk 0:02:53]}  Be6 {[%clk 0:02:49]} 10. Re1 {[%clk 0:02:52]}  g5 {[%clk 0:02:47]} 11. Bxe6 {[%clk 0:02:50]}  fxe6 {[%clk 0:02:47]} 12. Nh2 {[%clk 0:02:49]}  Qe7 {[%clk 0:02:46]} 13. b4 {[%clk 0:02:47]}  Qf7 {[%clk 0:02:33]} 14. Qe2 {[%clk 0:02:45]}  Ne7 {[%clk 0:02:28]} 15. Nc4 {[%clk 0:02:40]}  Ng6 {[%clk 0:02:27]} 16. Be3 {[%clk 0:02:39]}  Nf4 {[%clk 0:02:23]} 17. Bxf4 {[%clk 0:02:39]}  exf4 {[%clk 0:02:14]} 18. e5 {[%clk 0:02:38]}  Nd5 {[%clk 0:01:48]} 19. exd6 {[%clk 0:02:28]}  O-O-O {[%clk 0:01:48]} 20. dxc7 {[%clk 0:02:16]}  Qxc7 {[%clk 0:01:40]} 21. Rac1 {[%clk 0:02:08]}  Rde8 {[%clk 0:01:30]} 22. Nf3 {[%clk 0:01:56]}  Rhg8 {[%clk 0:01:26]} 23. Nfe5 {[%clk 0:01:55]}  Kb8 {[%clk 0:01:11]} 24. b5 {[%clk 0:01:52]}  a5 {[%clk 0:00:59]} 25. b6 {[%clk 0:01:39]}  Bxb6 {[%clk 0:00:56]} 26. Nxb6 {[%clk 0:01:36]}  Nxb6 {[%clk 0:00:54]} 27. c4 {[%clk 0:01:33]}  Rd8 {[%clk 0:00:53]} 28. Rb1 {[%clk 0:01:25]}  Nxa4 {[%clk 0:00:45]} 29. Qf3 {[%clk 0:01:15]}  Ka8 {[%clk 0:00:33]} 30. Ra1 {[%clk 0:01:08]}  Nc5 {[%clk 0:00:31]} 31. Qe2 {[%clk 0:00:37]}  Rd6 {[%clk 0:00:23]} 32. Qd2 {[%clk 0:00:37]}  Nb3 {[%clk 0:00:19]} 33. Qc3 {[%clk 0:00:33]}  Nxa1 {[%clk 0:00:18]} 34. Rxa1 {[%clk 0:00:34]}  Ra6 {[%clk 0:00:17]} 35. d4 {[%clk 0:00:32]}  Rd8 {[%clk 0:00:15]} 36. c5 {[%clk 0:00:32]}  Rd5 {[%clk 0:00:10]} 37. Nc4 {[%clk 0:00:30]}  Qd8 {[%clk 0:00:08]} 38. Nb6+ {[%clk 0:00:25]}  Rxb6 {[%clk 0:00:04]} 39. cxb6 {[%clk 0:00:25]}  Qxb6 {[%clk 0:00:05]} 40. Qc8+ {[%clk 0:00:20]}  Ka7 {[%clk 0:00:05]} 41. Qc3 {[%clk 0:00:20]}  Qxd4 {[%clk 0:00:05]} 42. Rxa5+ {[%clk 0:00:19]}  Kb8 {[%clk 0:00:04]} 43. Qa3 {[%clk 0:00:13]}  Qd1+ {[%clk 0:00:03]} 44. Kh2 {[%clk 0:00:13]}  Rxa5 {[%clk 0:00:04]} 45. Qxa5 {[%clk 0:00:13]}  Qd6 {[%clk 0:00:05]} 46. f3 {[%clk 0:00:11]}  b6 {[%clk 0:00:05]} 47. Qc3 {[%clk 0:00:11]}  Kb7 {[%clk 0:00:05]} 48. Qg7+ {[%clk 0:00:11]}  Ka6 {[%clk 0:00:03]} 49. Qxh6 {[%clk 0:00:11]}  Qd5 {[%clk 0:00:03]} 50. Qf8 {[%clk 0:00:09]}  Qe5 {[%clk 0:00:03]} 51. Qa3+ {[%clk 0:00:08]}  Kb7 {[%clk 0:00:03]} 52. Qe7+ {[%clk 0:00:07]}  Ka6 {[%clk 0:00:03]} 53. Qa3+ {[%clk 0:00:07]}  Qa5 {[%clk 0:00:02]} 54. Qd3+ {[%clk 0:00:06]}  Qb5 {[%clk 0:00:02]} 55. Qa3+ {[%clk 0:00:05]} 1-0


[Site "https://www.chess.com"]

[Event "Titled Tuesday Blitz February 14 Late 2023"]
[White "Lopez Perdomo, Juan David"]
[Black "Figorito, Nick"]
[WhiteFideId "4405137"]
[BlackFideId "30923689"]
[WhiteElo "2029"]
[BlackElo "2036"]
[Result "1-0"]
[Round "03"]
[TimeControl "180+2"]
[Date "2023.02.14"]
[WhiteClock "0:00:05"]
[BlackClock "0:00:05"]

1. e4 {[%clk 0:02:58]}  e6 {[%clk 0:02:59]} 2. d4 {[%clk 0:02:58]}  d5 {[%clk 0:03:00]} 3. exd5 {[%clk 0:02:58]}  exd5 {[%clk 0:03:01]} 4. Nf3 {[%clk 0:02:59]}  Bd6 {[%clk 0:03:01]} 5. Bd3 {[%clk 0:03:00]}  Ne7 {[%clk 0:03:01]} 6. O-O {[%clk 0:03:01]}  O-O {[%clk 0:03:01]} 7. c3 {[%clk 0:03:02]}  Bf5 {[%clk 0:03:01]} 8. Bg5 {[%clk 0:03:02]}  f6 {[%clk 0:03:01]} 9. Bh4 {[%clk 0:03:01]}  c6 {[%clk 0:02:59]} 10. Re1 {[%clk 0:03:00]}  Bxd3 {[%clk 0:02:59]} 11. Qxd3 {[%clk 0:03:00]}  Nd7 {[%clk 0:02:58]} 12. Nbd2 {[%clk 0:02:59]}  Qc7 {[%clk 0:02:56]} 13. Nf1 {[%clk 0:02:58]}  Rae8 {[%clk 0:02:55]} 14. Ne3 {[%clk 0:02:58]}  Ng6 {[%clk 0:02:45]} 15. Bg3 {[%clk 0:02:58]}  Bxg3 {[%clk 0:02:34]} 16. hxg3 {[%clk 0:02:58]}  Re6 {[%clk 0:02:32]} 17. Nf5 {[%clk 0:02:58]}  Rfe8 {[%clk 0:02:31]} 18. Rxe6 {[%clk 0:02:58]}  Rxe6 {[%clk 0:02:32]} 19. b4 {[%clk 0:02:45]}  a6 {[%clk 0:02:32]} 20. a4 {[%clk 0:02:45]}  Ne7 {[%clk 0:02:27]} 21. N3h4 {[%clk 0:02:40]}  Nxf5 {[%clk 0:02:27]} 22. Qxf5 {[%clk 0:02:38]}  Nf8 {[%clk 0:02:26]} 23. b5 {[%clk 0:02:38]}  cxb5 {[%clk 0:02:21]} 24. axb5 {[%clk 0:02:39]}  Qxc3 {[%clk 0:02:22]} 25. Rd1 {[%clk 0:02:30]}  Qb3 {[%clk 0:01:49]} 26. Qg4 {[%clk 0:02:23]}  Qxb5 {[%clk 0:01:35]} 27. Nf5 {[%clk 0:02:22]}  Qd7 {[%clk 0:01:33]} 28. Kh2 {[%clk 0:02:17]}  Re4 {[%clk 0:01:26]} 29. Qh3 {[%clk 0:02:14]}  a5 {[%clk 0:01:17]} 30. Ra1 {[%clk 0:01:56]}  a4 {[%clk 0:01:15]} 31. g4 {[%clk 0:01:49]}  b5 {[%clk 0:01:13]} 32. Qd3 {[%clk 0:01:37]}  Rxg4 {[%clk 0:01:08]} 33. Rb1 {[%clk 0:01:31]}  Ng6 {[%clk 0:01:04]} 34. Rxb5 {[%clk 0:01:30]}  Rxg2+ {[%clk 0:01:05]} 35. Kh1 {[%clk 0:01:28]}  Rxf2 {[%clk 0:00:55]} 36. Rb8+ {[%clk 0:01:26]}  Nf8 {[%clk 0:00:56]} 37. Qa3 {[%clk 0:01:15]}  Qf7 {[%clk 0:00:42]} 38. Ne7+ {[%clk 0:01:10]}  Kh8 {[%clk 0:00:39]} 39. Rxf8+ {[%clk 0:01:10]}  Qxf8 {[%clk 0:00:37]} 40. Ng6+ {[%clk 0:01:10]}  hxg6 {[%clk 0:00:36]} 41. Qxf8+ {[%clk 0:01:11]}  Kh7 {[%clk 0:00:37]} 42. Qa3 {[%clk 0:01:11]}  Rf5 {[%clk 0:00:31]} 43. Qxa4 {[%clk 0:01:10]}  g5 {[%clk 0:00:30]} 44. Qd7 {[%clk 0:01:09]}  Kg6 {[%clk 0:00:30]} 45. Qe8+ {[%clk 0:01:09]}  Kh6 {[%clk 0:00:30]} 46. Kg2 {[%clk 0:01:08]}  Rf4 {[%clk 0:00:30]} 47. Qe3 {[%clk 0:01:03]}  Kg6 {[%clk 0:00:27]} 48. Kg3 {[%clk 0:01:03]}  Re4 {[%clk 0:00:27]} 49. Qd3 {[%clk 0:01:02]}  f5 {[%clk 0:00:26]} 50. Qa6+ {[%clk 0:00:46]}  Kh5 {[%clk 0:00:25]} 51. Qa7 {[%clk 0:00:44]}  f4+ {[%clk 0:00:25]} 52. Kf2 {[%clk 0:00:43]}  Kg6 {[%clk 0:00:22]} 53. Qb6+ {[%clk 0:00:42]}  Kf5 {[%clk 0:00:22]} 54. Qa7 {[%clk 0:00:41]}  Kg4 {[%clk 0:00:20]} 55. Qd7+ {[%clk 0:00:40]}  Kh4 {[%clk 0:00:19]} 56. Qxd5 {[%clk 0:00:35]}  Re3 {[%clk 0:00:17]} 57. Qd8 {[%clk 0:00:31]}  Kg4 {[%clk 0:00:16]} 58. d5 {[%clk 0:00:30]}  Rf3+ {[%clk 0:00:16]} 59. Kg1 {[%clk 0:00:26]}  Rg3+ {[%clk 0:00:16]} 60. Kf2 {[%clk 0:00:26]}  Rf3+ {[%clk 0:00:17]} 61. Ke2 {[%clk 0:00:26]}  Re3+ {[%clk 0:00:17]} 62. Kd2 {[%clk 0:00:26]}  Rf3 {[%clk 0:00:16]} 63. d6 {[%clk 0:00:20]}  Rf2+ {[%clk 0:00:17]} 64. Ke1 {[%clk 0:00:19]}  Ra2 {[%clk 0:00:16]} 65. d7 {[%clk 0:00:19]}  f3 {[%clk 0:00:12]} 66. Qc8 {[%clk 0:00:18]}  Ra1+ {[%clk 0:00:08]} 67. Kf2 {[%clk 0:00:17]}  Ra2+ {[%clk 0:00:08]} 68. Ke3 {[%clk 0:00:18]}  Ra3+ {[%clk 0:00:07]} 69. Ke4 {[%clk 0:00:17]}  Ra4+ {[%clk 0:00:07]} 70. Kd3 {[%clk 0:00:16]}  Ra3+ {[%clk 0:00:07]} 71. Kc2 {[%clk 0:00:16]}  f2 {[%clk 0:00:06]} 72. d8=Q+ {[%clk 0:00:16]}  Kg3 {[%clk 0:00:06]} 73. Qd6+ {[%clk 0:00:15]}  Kg2 {[%clk 0:00:06]} 74. Qb7+ {[%clk 0:00:14]}  Kg1 {[%clk 0:00:06]} 75. Qd4 {[%clk 0:00:09]}  Rg3 {[%clk 0:00:05]} 76. Qbxg7 {[%clk 0:00:08]}  Rg2 {[%clk 0:00:05]} 77. Qb7 {[%clk 0:00:06]}  Kf1 {[%clk 0:00:05]} 78. Qb1+ {[%clk 0:00:05]}  Ke2 {[%clk 0:00:05]} 79. Qd3# {[%clk 0:00:05]} 1-0


[Site "https://www.chess.com"]

[Event "Titled Tuesday Blitz February 14 Late 2023"]
[White "ritanovikova"]
[Black "Sarkar, Justin"]
[BlackFideId "2010011"]
[WhiteElo "2189"]
[BlackElo "2309"]
[Result "1-0"]
[Round "03"]
[TimeControl "180+2"]
[Date "2023.02.14"]
[WhiteClock "0:00:57"]
[BlackClock "0:00:01"]

1. d4 {[%clk 0:03:00]}  Nf6 {[%clk 0:02:49]} 2. Bg5 {[%clk 0:02:59]}  d6 {[%clk 0:02:32]} 3. Nd2 {[%clk 0:02:51]}  e5 {[%clk 0:02:28]} 4. c3 {[%clk 0:02:49]}  Be7 {[%clk 0:02:24]} 5. e4 {[%clk 0:02:48]}  exd4 {[%clk 0:02:15]} 6. Bxf6 {[%clk 0:02:45]}  Bxf6 {[%clk 0:02:14]} 7. cxd4 {[%clk 0:02:41]}  Bxd4 {[%clk 0:02:14]} 8. Qa4+ {[%clk 0:02:41]}  Nc6 {[%clk 0:02:13]} 9. Bb5 {[%clk 0:02:42]}  Bxb2 {[%clk 0:02:01]} 10. Rb1 {[%clk 0:02:25]}  Bf6 {[%clk 0:01:58]} 11. Bxc6+ {[%clk 0:02:22]}  bxc6 {[%clk 0:01:58]} 12. Qxc6+ {[%clk 0:02:22]}  Bd7 {[%clk 0:01:58]} 13. Qc2 {[%clk 0:02:18]}  O-O {[%clk 0:01:57]} 14. Ngf3 {[%clk 0:02:18]}  Be6 {[%clk 0:01:20]} 15. O-O {[%clk 0:02:16]}  Qd7 {[%clk 0:01:16]} 16. Rfd1 {[%clk 0:02:15]}  Rab8 {[%clk 0:01:12]} 17. Rxb8 {[%clk 0:02:11]}  Rxb8 {[%clk 0:01:11]} 18. e5 {[%clk 0:01:57]}  dxe5 {[%clk 0:00:49]} 19. Ne4 {[%clk 0:01:55]}  Qe7 {[%clk 0:00:49]} 20. Nxf6+ {[%clk 0:01:54]}  gxf6 {[%clk 0:00:48]} 21. h3 {[%clk 0:01:46]}  Rd8 {[%clk 0:00:42]} 22. Rc1 {[%clk 0:01:41]}  Rd7 {[%clk 0:00:19]} 23. Qa4 {[%clk 0:01:29]}  Bd5 {[%clk 0:00:17]} 24. Qxa7 {[%clk 0:01:26]}  Bxf3 {[%clk 0:00:16]} 25. gxf3 {[%clk 0:01:27]}  Qd6 {[%clk 0:00:09]} 26. Kh1 {[%clk 0:01:21]}  Qd5 {[%clk 0:00:07]} 27. Rg1+ {[%clk 0:01:17]}  Kf8 {[%clk 0:00:06]} 28. Qb8+ {[%clk 0:01:12]}  Rd8 {[%clk 0:00:04]} 29. Qb4+ {[%clk 0:01:10]}  c5 {[%clk 0:00:02]} 30. Qg4 {[%clk 0:01:06]}  Ke7 {[%clk 0:00:02]} 31. a4 {[%clk 0:01:02]}  c4 {[%clk 0:00:03]} 32. Rb1 {[%clk 0:00:59]}  c3 {[%clk 0:00:02]} 33. Qb4+ {[%clk 0:00:58]}  Qd6 {[%clk 0:00:01]} 34. Qxc3 {[%clk 0:00:58]}  Rb8 {[%clk 0:00:01]} 35. Rc1 {[%clk 0:00:57]} 1-0


[Site "https://www.chess.com"]

[Event "Titled Tuesday Blitz February 14 Late 2023"]
[White "Curtis, John"]
[Black "Miszler, Levente"]
[WhiteFideId "3200256"]
[BlackFideId "763276"]
[WhiteElo "2292"]
[BlackElo "2271"]
[Result "0-1"]
[Round "03"]
[TimeControl "180+2"]
[Date "2023.02.14"]
[WhiteClock "0:00:10"]
[BlackClock "0:00:57"]

1. e4 {[%clk 0:03:00]}  c6 {[%clk 0:02:57]} 2. Nf3 {[%clk 0:02:51]}  d5 {[%clk 0:02:57]} 3. e5 {[%clk 0:02:47]}  Bf5 {[%clk 0:02:53]} 4. Nh4 {[%clk 0:02:44]}  Be6 {[%clk 0:02:45]} 5. f4 {[%clk 0:02:40]}  Qd7 {[%clk 0:02:43]} 6. Be2 {[%clk 0:02:35]}  Nh6 {[%clk 0:02:38]} 7. O-O {[%clk 0:02:31]}  Bg4 {[%clk 0:02:25]} 8. Bxg4 {[%clk 0:02:28]}  Qxg4 {[%clk 0:02:20]} 9. Qxg4 {[%clk 0:02:28]}  Nxg4 {[%clk 0:02:21]} 10. d4 {[%clk 0:02:22]}  e6 {[%clk 0:02:20]} 11. h3 {[%clk 0:02:21]}  Nh6 {[%clk 0:02:19]} 12. g4 {[%clk 0:02:14]}  c5 {[%clk 0:02:18]} 13. Nd2 {[%clk 0:01:54]}  cxd4 {[%clk 0:02:17]} 14. Nb3 {[%clk 0:01:49]}  Nc6 {[%clk 0:02:17]} 15. Nf3 {[%clk 0:01:43]}  Rc8 {[%clk 0:02:14]} 16. Nbxd4 {[%clk 0:01:35]}  Bc5 {[%clk 0:02:08]} 17. c3 {[%clk 0:01:34]}  Nxd4 {[%clk 0:02:01]} 18. cxd4 {[%clk 0:01:28]}  Bb6 {[%clk 0:02:02]} 19. Be3 {[%clk 0:01:26]}  Kd7 {[%clk 0:02:01]} 20. Rfc1 {[%clk 0:01:23]}  f6 {[%clk 0:02:00]} 21. Kf2 {[%clk 0:01:23]}  Nf7 {[%clk 0:01:59]} 22. Ke2 {[%clk 0:01:22]}  Nd8 {[%clk 0:01:57]} 23. Rxc8 {[%clk 0:01:13]}  Kxc8 {[%clk 0:01:58]} 24. exf6 {[%clk 0:01:10]}  gxf6 {[%clk 0:01:59]} 25. g5 {[%clk 0:01:11]}  Rf8 {[%clk 0:01:53]} 26. h4 {[%clk 0:01:08]}  Nc6 {[%clk 0:01:51]} 27. h5 {[%clk 0:01:00]}  Kd7 {[%clk 0:01:50]} 28. Rg1 {[%clk 0:00:58]}  Ke7 {[%clk 0:01:48]} 29. gxf6+ {[%clk 0:00:42]}  Kxf6 {[%clk 0:01:45]} 30. h6 {[%clk 0:00:41]}  Ne7 {[%clk 0:01:39]} 31. Ne5 {[%clk 0:00:40]}  Rg8 {[%clk 0:01:24]} 32. Ng4+ {[%clk 0:00:16]}  Kf5 {[%clk 0:01:20]} 33. Kf3 {[%clk 0:00:16]}  Ng6 {[%clk 0:01:16]} 34. Rh1 {[%clk 0:00:16]}  Ne7 {[%clk 0:00:59]} 35. Rh5+ {[%clk 0:00:15]}  Kg6 {[%clk 0:01:00]} 36. Rg5+ {[%clk 0:00:14]}  Kf7 {[%clk 0:00:59]} 37. Rxg8 {[%clk 0:00:12]}  Nxg8 {[%clk 0:00:58]} 38. Nf6 {[%clk 0:00:12]}  Kxf6 {[%clk 0:00:58]} 39. Bf2 {[%clk 0:00:10]}  Nxh6 {[%clk 0:00:57]} 0-1


[Site "https://www.chess.com"]